[Event "FIDE Chesscom Grand Swiss 2019"]
[Site "Douglas-Isle of Man"]
[Date "2019.10.21"]
[Round "11.30"]
[White "Najer, Evgeniy"]
[Black "Eljanov, Pavel"]
[Result "1/2-1/2"]
[ECO "C65"]
[WhiteElo "2635"]
[BlackElo "2663"]
[Annotator "RC"]
[PlyCount "191"]
[EventDate "2019.10.10"]
[EventType "swiss"]
[EventCountry "GBR"]
[SourceTitle "playchess.com"]
[Source "ChessBase"]
[SourceQuality "1"]
[TimeControl "40/6000+30:20/3000+30:900+30"]

1. e4 {[%emt 0:01:58]} e5 {[%emt 0:00:00]} 2. Nf3 {[%emt 0:00:19]} Nc6 {[%emt 0:00:00]} 3. Bb5 {[%emt 0:00:16]} Nf6 {[%emt 0:00:00]} 4. d3 {[%emt 0:00:37]} Bc5 {[%emt 0:00:38]} 5. c3 {[%emt 0:00:15]} d5 {[%emt 0:00:25]} 6. Nbd2 {[%emt 0:02:39]} dxe4 {[%emt 0:01:22]} 7. dxe4 {[%emt 0:00:05]} O-O {[%emt 0:00:04]} 8. O-O {[%emt 0:01:24]} a5 {[%emt 0:00:57]} 9. Ba4 {[%emt 0:04:12]} Qe7 {[%emt 0:02:38]} 10. Qe2 {[%emt 0:02:20]} Rb8 {[%emt 0:05:24]} 11. a3 {[%emt 0:18:44]} Nh5 {[%emt 0:32:04]} 12. b4 {[%emt 0:27:12]} Nf4 {[%emt 0:00:30]} 13. Qd1 {[%emt 0:02:02]} b5 {[%emt 0:11:26]} 14. Bb3 {[%emt 0:13:22]} axb4 {[%emt 0:04:16]} 15. axb4 {[%emt 0:04:16]} Bb6 {[%emt 0:00:35]} 16. Bd5 {[%emt 0:07:19]} Qf6 {[%emt 0:01:28]} 17. Nb3 {[%emt 0:02:15]} Ne7 {[%emt 0:00:56]} 18. Bxf4 {[%emt 0:01:11]} Qxf4 {[%emt 0:01:06]} 19. Nc5 {[%emt 0:00:39]} Qf6 {[%emt 0:06:38]} 20. Qe2 {[%emt 0:02:53]} c6 {[%emt 0:03:52]} 21. Bb3 {[%emt 0:00:08]} Ng6 {[%emt 0:00:11]} 22. g3 {[%emt 0:05:08]} Qe7 {[%emt 0:14:37]} 23. Qe3 {[%emt 0:01:17]} Kh8 {[%emt 0:02:00]} 24. h4 {[%emt 0:03:21]} Kg8 {[%emt 0:18:54]} 25. h5 {[%emt 0:01:39]} Nh8 {[%emt 0:00:01]} 26. Nh4 {[%emt 0:00:20]} Be6 {[%emt 0:01:05]} 27. Nf5 {[%emt 0:02:45]} Qf6 {[%emt 0:00:16]} 28. Bc2 {[%emt 0:00:23]} g6 {[%emt 0:00:40]} 29. Qh6 {[%emt 0:00:19]} Bxf5 {[%emt 0:01:39]} 30. exf5 {[%emt 0:00:07]} Bxc5 {[%emt 0:00:12]} 31. bxc5 {[%emt 0:00:04]} Qg7 {[%emt 0:00:11]} 32. Qxg7+ {[%emt 0:00:24]} Kxg7 {[%emt 0:00:01]} 33. Ra6 {[%emt 0:00:09]} gxh5 {[%emt 0:00:22]} 34. Rd1 {[%emt 0:00:31]} Rfc8 {[%emt 0:01:22]} 35. Rd6 {[%emt 0:01:42]} b4 {[%emt 0:00:57]} 36. cxb4 {[%emt 0:00:57]} Rxb4 {[%emt 0:00:03]} 37. Raxc6 {[%emt 0:00:11]} Ra8 {[%emt 0:01:03]} 38. Bd1 {[%emt 0:04:57]} h4 {[%emt 0:00:15]} 39. gxh4 {[%emt 0:00:33]} Rxh4 {[%emt 0:00:15]} 40. Rd3 {[%emt 0:00:20]} Rf4 {[%emt 0:00:54]} 41. Bc2 {[%emt 0:07:16]} Ra1+ {[%emt 0:10:16]} 42. Kg2 {[%emt 0:02:23]} Rc1 {[%emt 0:00:38]} 43. Rc3 {[%emt 0:14:28]} e4 {[%emt 0:02:11]} 44. Rd6 {[%emt 0:05:16]} Rxf5 {[%emt 0:22:50]} 45. Rd1 {[%emt 0:00:31]} Rxd1 {[%emt 0:00:08]} 46. Bxd1 {[%emt 0:00:04]} Ng6 {[%emt 0:00:36]} 47. c6 {[%emt 0:00:04]} Rg5+ {[%emt 0:03:50]} 48. Kh2 {[%emt 0:09:54]} Ne7 {[%emt 0:02:09]} 49. c7 {[%emt 0:00:04]} Rd5 {[%emt 0:02:42]} 50. Bc2 {[%emt 0:03:01]} Rd2 {[%emt 0:01:08]} 51. Kg1 {[%emt 0:02:00]} f5 {[%emt 0:00:04]} 52. Rc6 {[%emt 0:06:13]} Nc8 {[%emt 0:06:41]} 53. Bb3 {[%emt 0:02:10]} Rd6 {[%emt 0:00:07]} 54. Rc5 {[%emt 0:00:47]} Kf6 {[%emt 0:00:23]} 55. Bg8 {[%emt 0:01:19]} Rd7 {[%emt 0:00:13]} 56. Bd5 {[%emt 0:01:48]} Ne7 {[%emt 0:02:26]} 57. Bb7 {[%emt 0:00:41]} Rd1+ {[%emt 0:00:48]} 58. Kg2 {[%emt 0:00:07]} Rd2 {[%emt 0:00:19]} 59. Kf1 {[%emt 0:00:32]} Rd3 {[%emt 0:01:33]} 60. Ke2 {[%emt 0:00:58]} Rf3 {[%emt 0:00:39]} 61. Rc6+ {[%emt 0:02:49]} Ke5 {[%emt 0:02:32]} 62. c8=Q {[%emt 0:04:37]} Nxc8 {[%emt 0:00:05]} 63. Bxc8 {[%emt 0:00:08]} Kf4 {[%emt 0:03:05]} 64. Rh6 {[%emt 0:03:25]} Rc3 {[%emt 0:00:09]} 65. Bd7 {[%emt 0:00:43]} e3 {[%emt 0:05:55]} 66. Rh4+ {[%emt 0:02:53]} Kg5 {[%emt 0:00:02]} 67. Rxh7 {[%emt 0:00:11]} exf2 {[%emt 0:00:04]} 68. Kxf2 {[%emt 0:00:36]} Rc7 {[%emt 0:03:03]} 69. Ke3 {[%emt 0:00:12]} Ra7 {[%emt 0:01:08]} 70. Kd4 {[%emt 0:00:19]} Kf4 {[%emt 0:00:12]} 71. Rf7 {[%emt 0:00:32]} Kg3 {[%emt 0:01:08]} 72. Rg7+ {[%emt 0:01:52]} Kf4 {[%emt 0:00:05]} 73. Kc4 {[%emt 0:00:29]} Ke5 {[%emt 0:01:07]} 74. Kc5 {[%emt 0:00:38]} Rc7+ {[%emt 0:00:43]} 75. Kb6 {[%emt 0:00:13]} Kf6 {[%emt 0:01:40]} 76. Rh7 {[%emt 0:00:08]} Rc1 {[%emt 0:00:33]} 77. Rh5 {[%emt 0:00:46]} Rf1 {[%emt 0:01:31]} 78. Bb5 {[%emt 0:00:23]} Rb1 {[%emt 0:00:51]} 79. Kc5 {[%emt 0:00:20]} Ke5 {[%emt 0:00:12]} 80. Rh8 {[%emt 0:01:07]} Rd1 {[%emt 0:00:33]} 81. Bc4 {[%emt 0:00:50]} Kf4 {[%emt 0:00:44]} 82. Bb3 {[%emt 0:00:33]} Rd2 {[%emt 0:00:10]} 83. Kc4 {[%emt 0:00:53]} Rd7 {[%emt 0:00:10]} 84. Rf8 {[%emt 0:00:14]} Rc7+ {[%emt 0:00:49]} 85. Kd4 {[%emt 0:00:27]} Rd7+ {[%emt 0:00:09]} 86. Bd5 {[%emt 0:00:04]} Ra7 {[%emt 0:00:05]} 87. Rh8 {[%emt 0:00:24]} Ra1 {[%emt 0:00:18]} 88. Bc4 {[%emt 0:00:23]} Ra4 {[%emt 0:01:36]} 89. Rh1 {[%emt 0:00:29]} Ra3 {[%emt 0:00:39]} 90. Rb1 {[%emt 0:01:14]} Ra4 {[%emt 0:00:33]} 91. Rf1+ {[%emt 0:00:30]} Kg5 {[%emt 0:00:02]} 92. Kd5 {[%emt 0:00:33]} Ra3 {[%emt 0:00:38]} 93. Rd1 {[%emt 0:02:01]} Re3 {[%emt 0:00:39]} 94. Bd3 {[%emt 0:00:21]} Kf6 {[%emt 0:00:12]} 95. Bc4 {[%emt 0:00:38]} Re4 {[%emt 0:00:20]} 96. Rg1 {[%emt 0:01:13]} 1/2-1/2

[Event "FIDE Chesscom Grand Swiss 2019"]
[Site "Douglas-Isle of Man"]
[Date "2019.10.21"]
[Round "11.33"]
[White "Danielian, Elina"]
[Black "Lei, Tingjie"]
[Result "0-1"]
[ECO "E54"]
[WhiteElo "2385"]
[BlackElo "2469"]
[Annotator "ChessBase"]
[PlyCount "98"]
[EventDate "2019.10.10"]
[EventType "swiss"]
[EventCountry "GBR"]
[SourceTitle "playchess.com"]
[Source "ChessBase"]
[SourceQuality "1"]
[TimeControl "40/6000+30:20/3000+30:900+30"]

1. d4 {[%emt 0:00:00]} Nf6 {[%emt 0:00:00]} 2. c4 {[%emt 0:00:00]} e6 {[%emt 0:00:00]} 3. Nc3 {[%emt 0:00:00]} Bb4 {[%emt 0:00:06]} 4. e3 {[%emt 0:00:06]} d5 {[%emt 0:01:22]} 5. Nf3 {[%emt 0:00:14]} O-O {[%emt 0:00:10]} 6. Bd3 {[%emt 0:00:21]} c5 {[%emt 0:00:12]} 7. O-O {[%emt 0:00:05]} cxd4 {[%emt 0:00:09]} 8. exd4 {[%emt 0:00:03]} dxc4 {[%emt 0:00:07]} 9. Bxc4 {[%emt 0:00:03]} b6 {[%emt 0:00:09]} 10. Bg5 {[%emt 0:00:33]} Bb7 {[%emt 0:00:37]} 11. Rc1 {[%emt 0:02:06]} Nbd7 {[%emt 0:00:52]} 12. Bd3 {[%emt 0:02:32]} Rc8 {[%emt 0:02:50]} 13. Bb1 {[%emt 0:01:32]} Be7 {[%emt 0:09:47]} 14. Qd3 {[%emt 0:03:48]} g6 {[%emt 0:02:00]} 15. h4 {[%emt 0:24:18]} a6 {[%emt 0:06:12]} 16. a4 {[%emt 0:08:59]} b5 {[%emt 0:01:31]} 17. axb5 {[%emt 0:00:06]} axb5 {[%emt 0:00:07]} 18. b4 {[%emt 0:20:21]} Nb6 {[%emt 0:13:32]} 19. Ba2 {[%emt 0:11:56]} Ra8 {[%emt 0:08:09]} 20. Qe2 {[%emt 0:07:10]} Nfd5 {[%emt 0:08:14]} 21. Bxd5 {[%emt 0:00:22]} Nxd5 {[%emt 0:00:23]} 22. Bh6 {[%emt 0:17:14]} Re8 {[%emt 0:03:38]} 23. h5 {[%emt 0:00:14]} Nxc3 {[%emt 0:13:38]} 24. Rxc3 {[%emt 0:00:04]} Bxf3 {[%emt 0:05:59]} 25. Rxf3 {[%emt 0:03:09]} Qxd4 {[%emt 0:00:25]} 26. Rd1 {[%emt 0:06:48]} Ra1 {[%emt 0:07:04]} 27. Rfd3 {[%emt 0:00:51]} Rxd1+ {[%emt 0:00:09]} 28. Rxd1 {[%emt 0:00:22]} Qc4 {[%emt 0:00:05]} 29. Qb2 {[%emt 0:00:40]} f6 {[%emt 0:00:25]} 30. hxg6 {[%emt 0:00:04]} hxg6 {[%emt 0:00:04]} 31. Bd2 {[%emt 0:00:35]} Kf7 {[%emt 0:00:51]} 32. Rc1 {[%emt 0:00:19]} Qd5 {[%emt 0:04:41]} 33. Be3 {[%emt 0:00:12]} Rh8 {[%emt 0:02:24]} 34. Qe2 {[%emt 0:01:06]} Qe5 {[%emt 0:01:31]} 35. Qf3 {[%emt 0:00:33]} Rh4 {[%emt 0:09:45]} 36. Qb7 {[%emt 0:00:37]} Qd5 {[%emt 0:02:25]} 37. Qxd5 {[%emt 0:00:04]} exd5 {[%emt 0:00:04]} 38. f4 {[%emt 0:00:06]} Bxb4 {[%emt 0:03:08]} 39. Rb1 {[%emt 0:01:20]} Bc3 {[%emt 0:00:21]} 40. Rxb5 {[%emt 0:00:10]} d4 {[%emt 0:00:10]} 41. Bc1 {[%emt 0:02:23]} Ke6 {[%emt 0:04:55]} 42. Kf2 {[%emt 0:02:29]} Rh1 {[%emt 0:01:55]} 43. f5+ {[%emt 0:05:24]} gxf5 {[%emt 0:00:56]} 44. Bf4 {[%emt 0:00:03]} d3 {[%emt 0:02:20]} 45. Rb6+ {[%emt 0:00:05]} Kd5 {[%emt 0:00:09]} 46. Rd6+ {[%emt 0:00:03]} Ke4 {[%emt 0:00:18]} 47. g3 {[%emt 0:00:03]} Rh2+ {[%emt 0:02:00]} 48. Kg1 {[%emt 0:00:13]} Ra2 {[%emt 0:00:20]} 49. Kf1 {[%emt 0:00:47]} Be5 {[%emt 0:00:25]} 0-1

[Event "FIDE Chesscom Grand Swiss 2019"]
[Site "Douglas-Isle of Man"]
[Date "2019.10.21"]
[Round "11.35"]
[White "Boruchovsky, Avital"]
[Black "Ushenina, Anna"]
[Result "1/2-1/2"]
[ECO "D02"]
[WhiteElo "2533"]
[BlackElo "2431"]
[Annotator "ChessBase"]
[PlyCount "83"]
[EventDate "2019.10.10"]
[EventType "swiss"]
[EventCountry "GBR"]
[SourceTitle "playchess.com"]
[Source "ChessBase"]
[SourceQuality "1"]
[TimeControl "40/6000+30:20/3000+30:900+30"]

1. Nf3 {[%emt 0:00:00]} d5 {[%emt 0:00:00]} 2. g3 {[%emt 0:00:00]} Bg4 {[%emt 0:00:39]} 3. Bg2 {[%emt 0:00:00]} c6 {[%emt 0:00:02]} 4. O-O {[%emt 0:00:09]} Nd7 {[%emt 0:01:09]} 5. d4 {[%emt 0:00:14]} e6 {[%emt 0:00:21]} 6. Nbd2 {[%emt 0:00:09]} Ngf6 {[%emt 0:08:23]} 7. Re1 {[%emt 0:00:09]} Be7 {[%emt 0:01:49]} 8. e4 {[%emt 0:00:10]} dxe4 {[%emt 0:01:25]} 9. Nxe4 {[%emt 0:00:04]} Nxe4 {[%emt 0:00:06]} 10. Rxe4 {[%emt 0:00:11]} Bf5 {[%emt 0:00:20]} 11. Re1 {[%emt 0:00:08]} O-O {[%emt 0:00:20]} 12. c3 {[%emt 0:00:07]} a5 {[%emt 0:00:27]} 13. Bf4 {[%emt 0:04:17]} Qb6 {[%emt 0:00:36]} 14. Qe2 {[%emt 0:00:09]} Qa6 {[%emt 0:05:09]} 15. c4 {[%emt 0:01:36]} Nf6 {[%emt 0:06:54]} 16. h3 {[%emt 0:05:40]} Rad8 {[%emt 0:09:51]} 17. g4 {[%emt 0:01:04]} Bg6 {[%emt 0:02:57]} 18. Rad1 {[%emt 0:00:46]} h6 {[%emt 0:04:53]} 19. a3 {[%emt 0:16:13]} a4 {[%emt 0:04:25]} 20. Ne5 {[%emt 0:09:18]} Bh7 {[%emt 0:00:29]} 21. h4 {[%emt 0:00:10]} Nd7 {[%emt 0:00:51]} 22. Nf3 {[%emt 0:00:09]} Rfe8 {[%emt 0:13:44]} 23. Bc7 {[%emt 0:03:12]} Rc8 {[%emt 0:01:45]} 24. Bg3 {[%emt 0:00:08]} Qa5 {[%emt 0:05:58]} 25. Qe3 {[%emt 0:09:03]} Bg6 {[%emt 0:03:26]} 26. Bf4 {[%emt 0:06:36]} h5 {[%emt 0:02:16]} 27. g5 {[%emt 0:01:26]} Rcd8 {[%emt 0:06:25]} 28. Qe2 {[%emt 0:07:49]} Qf5 {[%emt 0:03:13]} 29. Bg3 {[%emt 0:00:44]} Qc2 {[%emt 0:00:46]} 30. Rd2 {[%emt 0:01:43]} Qb3 {[%emt 0:00:35]} 31. Rc1 {[%emt 0:08:31]} Qb6 {[%emt 0:00:09]} 32. Rc3 {[%emt 0:01:49]} Bf5 {[%emt 0:05:22]} 33. Nh2 {[%emt 0:00:48]} g6 {[%emt 0:01:13]} 34. Re3 {[%emt 0:06:24]} Qa6 {[%emt 0:05:28]} 35. Bc7 {[%emt 0:00:35]} Rc8 {[%emt 0:00:01]} 36. Bf4 {[%emt 0:00:07]} Nb6 {[%emt 0:00:46]} 37. Rc3 {[%emt 0:04:39]} Bf8 {[%emt 0:03:09]} 38. Nf1 {[%emt 0:06:27]} Bg4 {[%emt 0:06:48]} 39. Qd3 {[%emt 0:05:21]} Bf5 {[%emt 0:00:03]} 40. Qe2 {[%emt 0:00:15]} Bg4 {[%emt 0:00:02]} 41. Qd3 {[%emt 0:51:26]} Bf5 {[%emt 0:51:16]} 42. Qe2 {[%emt 0:00:06]} 1/2-1/2

[Event "FIDE Chesscom Grand Swiss 2019"]
[Site "Douglas-Isle of Man"]
[Date "2019.10.21"]
[Round "11.36"]
[White "Rakotomaharo, Fy Antenaina"]
[Black "Atalik, Ekaterina"]
[Result "1-0"]
[ECO "B10"]
[WhiteElo "2428"]
[BlackElo "2464"]
[Annotator "ChessBase"]
[PlyCount "65"]
[EventDate "2019.10.10"]
[EventType "swiss"]
[EventCountry "GBR"]
[SourceTitle "playchess.com"]
[Source "ChessBase"]
[SourceQuality "1"]
[TimeControl "40/6000+30:20/3000+30:900+30"]

1. e4 {[%emt 0:00:00]} c6 {[%emt 0:00:00]} 2. Nf3 {[%emt 0:00:18]} d5 {[%emt 0:00:05]} 3. d3 {[%emt 0:00:10]} Bg4 {[%emt 0:02:17]} 4. h3 {[%emt 0:00:20]} Bxf3 {[%emt 0:00:10]} 5. Qxf3 {[%emt 0:00:06]} e6 {[%emt 0:00:22]} 6. g3 {[%emt 0:00:15]} Nd7 {[%emt 0:00:51]} 7. Bg2 {[%emt 0:00:24]} Ngf6 {[%emt 0:01:42]} 8. Qe2 {[%emt 0:03:07]} Qc7 {[%emt 0:02:05]} 9. Nd2 {[%emt 0:01:17]} O-O-O {[%emt 0:02:27]} 10. O-O {[%emt 0:06:05]} h5 {[%emt 0:01:25]} 11. Nf3 {[%emt 0:00:38]} Bd6 {[%emt 0:09:20]} 12. c3 {[%emt 0:04:36]} Nh7 {[%emt 0:06:52]} 13. b4 {[%emt 0:16:20]} dxe4 {[%emt 0:27:54]} 14. Qxe4 {[%emt 0:10:33]} h4 {[%emt 0:11:35]} 15. Qxh4 {[%emt 0:08:16]} g5 {[%emt 0:05:45]} 16. Qd4 {[%emt 0:18:16]} Nb6 {[%emt 0:01:51]} 17. Qe3 {[%emt 0:00:06]} Rhg8 {[%emt 0:05:57]} 18. Bd2 {[%emt 0:03:28]} g4 {[%emt 0:03:11]} 19. hxg4 {[%emt 0:00:40]} Rxg4 {[%emt 0:00:13]} 20. Qh6 {[%emt 0:00:36]} Rh8 {[%emt 0:08:25]} 21. c4 {[%emt 0:04:49]} Bf8 {[%emt 0:02:15]} 22. Qh5 {[%emt 0:00:37]} Rgg8 {[%emt 0:07:10]} 23. Bf4 {[%emt 0:06:58]} Qe7 {[%emt 0:07:08]} 24. Qe5 {[%emt 0:03:08]} Kd8 {[%emt 0:00:12]} 25. Qb8+ {[%emt 0:04:15]} Nc8 {[%emt 0:00:05]} 26. b5 {[%emt 0:00:03]} c5 {[%emt 0:01:49]} 27. Ne5 {[%emt 0:01:13]} Ng5 {[%emt 0:00:16]} 28. Bxg5 {[%emt 0:00:44]} Rxg5 {[%emt 0:00:09]} 29. Bxb7 {[%emt 0:00:14]} Qc7 {[%emt 0:01:51]} 30. Qxc7+ {[%emt 0:02:46]} Kxc7 {[%emt 0:00:04]} 31. Nxf7 {[%emt 0:00:20]} Rg7 {[%emt 0:00:17]} 32. Nxh8 {[%emt 0:00:14]} Kxb7 {[%emt 0:00:50]} 33. Rae1 {[%emt 0:00:12]} 1-0

[Event "FIDE Chesscom Grand Swiss 2019"]
[Site "Douglas-Isle of Man"]
[Date "2019.10.21"]
[Round "11.39"]
[White "Sebag, Marie"]
[Black "Allen, Keith"]
[Result "1-0"]
[ECO "B12"]
[WhiteElo "2445"]
[BlackElo "2161"]
[Annotator "NA"]
[PlyCount "57"]
[EventDate "2019.10.10"]
[EventType "swiss"]
[EventCountry "GBR"]
[SourceTitle "playchess.com"]
[Source "ChessBase"]
[SourceQuality "1"]
[TimeControl "40/6000+30:20/3000+30:900+30"]

1. e4 {[%emt 0:00:00]} c6 {[%emt 0:02:48]} 2. d4 {[%emt 0:00:00]} d5 {[%emt 0:00:50]} 3. e5 {[%emt 0:00:14]} Bf5 {[%emt 0:00:17]} 4. Nf3 {[%emt 0:00:17]} e6 {[%emt 0:00:13]} 5. Be2 {[%emt 0:00:17]} Ne7 {[%emt 0:00:27]} 6. O-O {[%emt 0:00:42]} c5 {[%emt 0:00:43]} 7. c4 {[%emt 0:00:24]} Nbc6 {[%emt 0:04:15]} 8. dxc5 {[%emt 0:00:27]} d4 {[%emt 0:03:06]} 9. Qb3 {[%emt 0:01:33]} Ng6 {[%emt 0:11:58]} 10. Qxb7 {[%emt 0:03:29]} Qc8 {[%emt 0:02:04]} 11. Qxc8+ {[%emt 0:03:35]} Rxc8 {[%emt 0:00:07]} 12. a3 {[%emt 0:00:33]} a5 {[%emt 0:35:59]} 13. b4 {[%emt 0:01:17]} axb4 {[%emt 0:10:39]} 14. axb4 {[%emt 0:00:10]} Nxb4 {[%emt 0:01:10]} 15. Nxd4 {[%emt 0:00:57]} Bxc5 {[%emt 0:06:47]} 16. Nxf5 {[%emt 0:00:57]} exf5 {[%emt 0:00:04]} 17. Ra4 {[%emt 0:09:14]} Nxe5 {[%emt 0:02:24]} 18. Ba3 {[%emt 0:20:11]} Rb8 {[%emt 0:05:07]} 19. Ra5 {[%emt 0:02:46]} Bd6 {[%emt 0:06:23]} 20. Rd1 {[%emt 0:06:15]} Nec6 {[%emt 0:00:36]} 21. Rxf5 {[%emt 0:05:33]} Be7 {[%emt 0:00:17]} 22. Nc3 {[%emt 0:07:39]} O-O {[%emt 0:01:29]} 23. Nd5 {[%emt 0:07:15]} Rfe8 {[%emt 0:01:32]} 24. Nxe7+ {[%emt 0:07:21]} Nxe7 {[%emt 0:02:16]} 25. Rb5 {[%emt 0:02:25]} Nbc6 {[%emt 0:00:25]} 26. Bf3 {[%emt 0:01:42]} Rbd8 {[%emt 0:00:35]} 27. Rxd8 {[%emt 0:01:46]} Nxd8 {[%emt 0:01:56]} 28. Kf1 {[%emt 0:04:53]} Nc8 {[%emt 0:03:26]} 29. Rb8 {[%emt 0:02:12]} 1-0

[Event "FIDE Chesscom Grand Swiss 2019"]
[Site "Douglas-Isle of Man"]
[Date "2019.10.21"]
[Round "11.40"]
[White "Dahl, Baard"]
[Black "Clarke, Brandon G I"]
[Result "0-1"]
[ECO "A48"]
[WhiteElo "2067"]
[BlackElo "2445"]
[Annotator "NA"]
[PlyCount "80"]
[EventDate "2019.10.10"]
[EventType "swiss"]
[EventCountry "GBR"]
[SourceTitle "playchess.com"]
[Source "ChessBase"]
[SourceQuality "1"]
[TimeControl "40/6000+30:20/3000+30:900+30"]

1. d4 {[%emt 0:00:00]} Nf6 {[%emt 0:00:00]} 2. Nf3 {[%emt 0:00:00]} g6 {[%emt 0:00:00]} 3. Nbd2 {[%emt 0:00:00]} c5 {[%emt 0:09:30]} 4. dxc5 {[%emt 0:00:00]} Qa5 {[%emt 0:01:09]} 5. a3 {[%emt 0:00:00]} Qxc5 {[%emt 0:02:18]} 6. b4 {[%emt 0:00:01]} Qc7 {[%emt 0:01:04]} 7. Bb2 {[%emt 0:00:29]} Bg7 {[%emt 0:00:05]} 8. c4 {[%emt 0:00:36]} O-O {[%emt 0:00:23]} 9. e3 {[%emt 0:00:24]} a5 {[%emt 0:09:45]} 10. Be2 {[%emt 0:19:37]} Nc6 {[%emt 0:00:35]} 11. Qb3 {[%emt 0:14:05]} d6 {[%emt 0:07:53]} 12. O-O {[%emt 0:12:45]} Be6 {[%emt 0:04:21]} 13. Bc3 {[%emt 0:04:27]} Nd7 {[%emt 0:06:22]} 14. Bxg7 {[%emt 0:00:47]} Kxg7 {[%emt 0:00:03]} 15. Ng5 {[%emt 0:02:41]} Bf5 {[%emt 0:01:21]} 16. e4 {[%emt 0:01:28]} Be6 {[%emt 0:04:14]} 17. Nxe6+ {[%emt 0:01:12]} fxe6 {[%emt 0:00:04]} 18. Qb2+ {[%emt 0:10:28]} e5 {[%emt 0:00:33]} 19. Nf3 {[%emt 0:01:53]} Qb6 {[%emt 0:06:27]} 20. Rad1 {[%emt 0:06:38]} axb4 {[%emt 0:08:38]} 21. axb4 {[%emt 0:00:29]} Qxb4 {[%emt 0:06:44]} 22. Qxb4 {[%emt 0:00:16]} Nxb4 {[%emt 0:00:02]} 23. Rb1 {[%emt 0:00:11]} Nc6 {[%emt 0:03:05]} 24. Rxb7 {[%emt 0:01:44]} Nc5 {[%emt 0:00:23]} 25. Rc7 {[%emt 0:00:39]} Ra6 {[%emt 0:00:26]} 26. Rb1 {[%emt 0:03:57]} Kf6 {[%emt 0:00:48]} 27. Bf1 {[%emt 0:08:48]} Rfa8 {[%emt 0:00:23]} 28. g4 {[%emt 0:05:25]} g5 {[%emt 0:01:35]} 29. h4 {[%emt 0:01:29]} h6 {[%emt 0:02:00]} 30. hxg5+ {[%emt 0:00:35]} hxg5 {[%emt 0:00:03]} 31. Ne1 {[%emt 0:01:55]} Nd4 {[%emt 0:01:19]} 32. Nd3 {[%emt 0:01:31]} Nxd3 {[%emt 0:01:22]} 33. Bxd3 {[%emt 0:00:06]} Ne6 {[%emt 0:00:05]} 34. Rcb7 {[%emt 0:01:54]} Nc5 {[%emt 0:00:04]} 35. Bf1 {[%emt 0:02:33]} Nxb7 {[%emt 0:00:04]} 36. Rxb7 {[%emt 0:00:05]} Ra1 {[%emt 0:00:41]} 37. Rb3 {[%emt 0:03:45]} Re1 {[%emt 0:00:41]} 38. Kg2 {[%emt 0:01:48]} Rxe4 {[%emt 0:00:28]} 39. Kg3 {[%emt 0:00:07]} Ra1 {[%emt 0:00:33]} 40. Bd3 {[%emt 0:00:34]} Rg1+ {[%emt 0:00:35]} 0-1